bitfinex/quotes_ETHUSD_20251021
["timestamp","ask_amount","ask_price","bid_price","bid_amount"]
[1761065900181,0.001,4053.4,4053.3,5.12238355]
[1761065900475,0.001,4053.4,4053.3,5.59298355]
[1761065900649,0.001,4053.4,4053.3,6.85661356]
[1761065901081,0.001,4053.4,4053.3,27.82294469]
[1761065901466,0.001,4053.4,4053.3,7.46323001]
[1761065901670,0.001,4053.4,4053.3,14.07897955]
[1761065901986,0.001,4053.4,4053.3,10.86056555]
[1761065902694,0.001,4053.4,4053.3,11.46036655]
[1761065902983,0.001,4053.4,4053.3,7.45936655]
[1761065903192,0.001,4053.4,4053.3,4.66572555]
[1761065903356,0.001,4053.4,4053.3,8.66372555]
[1761065903592,0.001,4053.4,4053.3,15.09735787]
[1761065903988,0.001,4053.4,4053.3,5.724]
[1761065904191,0.001,4053.4,4053.3,5.72]
[1761065904627,0.001,4053.4,4053.3,3.988]
[1761065905180,0.001,4053.4,4053.3,3.984]
[1761065906206,0.001,4053.4,4052.3,0.21101]
[1761065906517,2.46724402,4053.2,4052.4,3.977]
[1761065906720,0.4293,4053.4,4052.4,3.977]
[1761065908184,2.89637973,4053.4,4052.4,3.977]
[1761065908426,2.4671721,4053.3,4052.4,3.977]
[1761065908591,0.4283,4053.3,4052.4,3.977]
[1761065908802,2.46807499,4053.4,4052.4,3.977]
[1761065908803,2.89637153,4053.4,4052.4,3.977]
[1761065909001,0.4283,4053.3,4053.2,0.1232]
[1761065909213,0.4283,4053.3,4051.2,2.010542]
[1761065909214,2.46749344,4052.7,4051.2,2.010542]
[1761065909405,0.03083983,4053.2,4052.9,0.1232]
[1761065909611,0.4283,4053.1,4052.9,0.1232]
[1761065909917,2.46760996,4052.6,4052.5,0.1232]
[1761065910324,3.38941565,4052.6,4052.5,0.1232]
[1761065910620,0.92180569,4052.6,4050.3,0.4412]
[1761065910828,2.4678477,4052.2,4050.4,3.919]
[1761065911041,0.4283,4052.1,4050.3,0.4412]
[1761065911226,0.4283,4052.1,4050.1,0.24700279]
[1761065911227,0.4591482,4052.1,4050.1,0.1714]
[1761065911401,0.4283,4052.1,4050.3,12.845123]
[1761065911608,0.03003736,4052.0,4050.4,1.6964523]
[1761065911833,0.03003736,4052.0,4049.2,2.46960958]
[1761065912018,0.4283,4051.9,4049.5,3.947]
[1761065912231,2.46852349,4051.1,4049.6,3.691347]
[1761065912420,0.4283,4051.9,4049.7,3.943]
[1761065912421,0.50688,4051.8,4049.7,3.943]
[1761065912648,0.50688,4051.4,4048.6,0.4442]
[1761065912831,2.97534535,4051.1,4048.6,0.003]
[1761065913034,2.4684532,4051.2,4048.7,13.796732]
[1761065913209,0.03085581,4051.1,4049.0,2.26285]
[1761065913414,0.4283,4051.1,4049.0,2.26285]
[1761065913634,0.4283,4051.1,4049.2,7.974335]
[1761065913834,0.4283,4051.1,4049.3,0.8499435]
[1761065914034,2.89676964,4051.1,4049.3,2.240458]
[1761065914346,0.03002822,4051.0,4049.1,0.0839]
[1761065914507,0.45915657,4051.0,4049.2,3.943]
[1761065914711,0.4283,4051.0,4049.2,3.943]
[1761065914907,0.4283,4051.0,4049.6,2.469331]
[1761065915110,0.4283,4051.0,4049.6,2.46936024]
[1761065915319,0.4283,4051.0,4049.6,0.24693602]
[1761065915744,0.4283,4051.0,4049.2,3.943]
[1761065915745,2.46869297,4050.8,4049.2,3.943]
[1761065915947,0.03085886,4050.7,4049.1,0.0839]
[1761065916113,0.4283,4050.9,4049.1,0.0839]
[1761065916308,0.4283,4050.9,4049.2,3.933]
[1761065916309,2.4688834,4050.5,4049.2,3.933]
[1761065916533,2.46900047,4050.3,4049.2,3.933]
[1761065916843,2.46900047,4050.3,4049.0,0.0839]
[1761065917044,2.46901387,4050.2,4049.1,3.93]
[1761065917242,0.4283,4050.3,4049.1,3.93]
[1761065917432,2.46902445,4050.2,4049.1,3.93]
[1761065917631,0.4283,4050.3,4049.1,3.93]
[1761065917940,2.46901387,4050.2,4049.1,3.93]
[1761065918146,0.4283,4051.0,4049.1,4.33139]
[1761065918308,0.4283,4051.6,4049.3,27.65888813]
[1761065918515,1.54224109,4053.3,4049.3,27.65888813]
[1761065918516,0.4283,4052.2,4049.7,1.728]
[1761065918720,0.4283,4052.8,4051.0,3.024978]
[1761065918921,0.4283,4052.8,4051.2,3.020876]
[1761065919221,1.9533,4053.3,4051.2,3.919]
[1761065919222,0.77124183,4052.6,4051.2,3.919]
[1761065919417,2.46784865,4052.2,4050.6,0.1714]
[1761065919618,0.4283,4052.5,4050.7,3.919]
[1761065919824,0.4283,4052.4,4050.8,4.012524]
[1761065920022,0.4283,4052.4,4051.1,3.379587]
[1761065920254,0.4283,4052.4,4051.2,0.58480753]
[1761065920435,0.4283,4052.4,4052.3,0.1232]
[1761065920632,0.2253,4052.7,4052.3,0.1232]
[1761065921120,0.4283,4053.1,4051.8,3.917]
[1761065921316,0.4283,4053.1,4052.8,0.1232]
[1761065921521,2.89555921,4053.1,4052.8,0.1232]
[1761065921742,0.2253,4052.9,4052.8,0.1232]
[1761065922129,0.6536,4052.9,4052.8,0.1232]
[1761065922329,3.12096904,4052.9,4052.8,0.1232]
[1761065922531,3.12096904,4052.9,4050.6,0.1714]
[1761065922532,1.21242515,4052.9,4051.0,3.376]
[1761065922757,0.2253,4052.9,4051.2,2.46840442]
[1761065922936,0.2253,4052.9,4051.4,2.987533]
[1761065923131,0.2253,4052.9,4051.6,2.46810385]
[1761065923434,0.001,4053.4,4051.7,2.4680998]
[1761065923648,0.001,4053.4,4052.5,4.929898]
[1761065923960,0.001,4053.4,4052.7,13.109846]
[1761065924160,0.001,4053.4,4052.9,2.46731372]
[1761065924320,0.001,4053.4,4052.6,4.3412]
[1761065924321,0.001,4053.4,4053.0,2.4672837]
[1761065924521,0.001,4053.4,4052.7,2.90869071]
[1761065924522,0.001,4053.4,4052.9,2.4673547]
[1761065924737,0.001,4053.4,4053.1,2.46719932]
[1761065924955,0.001,4053.4,4053.0,0.4412]
[1761065925126,0.001,4053.4,4053.0,2.46728344]
[1761065925527,0.001,4053.4,4053.0,0.4412]
[1761065925726,0.001,4053.4,4052.5,2.713522]
[1761065925921,0.001,4053.4,4052.6,8.554009]
[1761065926134,0.001,4053.4,4052.6,3.888]
[1761065926330,0.2253,4054.2,4052.6,3.888]
[1761065926565,2.46669955,4054.0,4052.7,3.886]
[1761065926768,0.45913298,4054.1,4050.3,1.667]
[1761065926769,2.46743734,4052.8,4050.3,1.667]
[1761065926959,2.46722608,4053.2,4050.8,12.54779]
[1761065927164,2.4672528,4053.1,4050.8,7.921658]
[1761065927368,2.46747533,4052.8,4050.9,4.3322]
[1761065927551,1.729,4054.3,4050.9,4.3322]
[1761065927552,0.2253,4052.7,4051.4,13.677399]
[1761065927753,0.2253,4052.7,4051.0,6.35952628]
[1761065927754,0.2253,4052.7,4051.2,2.46840283]
[1761065927946,0.2253,4052.7,4051.4,10.12997461]
[1761065928284,0.2253,4052.7,4051.3,0.63594028]
[1761065928285,0.2253,4052.7,4051.5,2.46819461]
[1761065928491,0.4283,4053.5,4051.5,2.46822164]
[1761065928782,0.4283,4053.3,4051.6,0.4412]
[1761065928984,2.1563,4054.1,4051.6,0.4412]
[1761065929166,2.46707551,4053.4,4051.9,2.46792456]
[1761065929364,2.46707551,4053.4,4052.0,3.883]
[1761065929552,2.46713502,4053.3,4052.0,3.883]
[1761065929768,0.03083602,4053.7,4051.6,0.4412]
[1761065929955,2.46706468,4053.4,4051.7,3.877]
[1761065930274,0.4283,4053.6,4051.8,3.876]
[1761065930444,0.4283,4053.6,4051.9,3.876]
[1761065930445,2.46724761,4053.1,4051.9,3.876]
[1761065930641,2.46737915,4052.9,4051.9,3.876]
[1761065930839,2.46731354,4053.0,4051.9,3.876]
[1761065931035,0.4283,4053.6,4051.7,0.1479]
[1761065931277,0.03004649,4053.5,4050.6,2.15874402]
[1761065931480,0.71780921,4053.6,4050.8,7.65911]
[1761065931778,2.46755216,4052.6,4051.2,2.46834379]
[1761065932084,2.46738816,4052.9,4051.3,2.46833374]
[1761065932298,0.2253,4052.8,4051.4,3.868]
[1761065932442,2.46767617,4052.4,4051.5,0.3868]
[1761065932646,2.46755169,4052.6,4050.8,0.4412]
[1761065932842,2.46755169,4052.6,4052.5,0.1232]
[1761065933585,2.46775893,4052.3,4051.8,3.862]
[1761065933781,2.46761765,4052.5,4051.8,3.862]
[1761065933989,2.9131738,4052.6,4051.8,3.862]
[1761065934184,0.2253,4052.8,4051.9,0.3862]
[1761065934569,2.46757079,4052.6,4051.9,0.3862]
[1761065934842,0.2253,4052.8,4051.9,0.3862]
[1761065935177,2.46730064,4053.1,4051.9,0.3862]
[1761065935483,2.4672568,4053.1,4051.9,0.3862]
[1761065935813,0.4456,4053.6,4052.0,0.68641922]
[1761065936007,2.46745451,4052.8,4052.0,0.68641922]
[1761065936510,0.22,4052.9,4051.7,0.1479]
[1761065936693,2.46733875,4053.0,4051.7,0.1479]
[1761065936874,2.46750068,4052.7,4051.7,0.1479]
[1761065937075,0.22,4052.8,4051.7,0.1479]
[1761065937274,2.4674908,4052.7,4051.7,0.1479]
[1761065937521,0.22,4052.8,4051.8,0.39939]
[1761065937709,2.68744858,4052.8,4051.8,0.39939]
[1761065938028,0.4456,4053.6,4051.9,3.428075]
[1761065938319,2.46700382,4053.5,4052.0,2.131198]
[1761065938503,0.001,4054.1,4052.2,3.8755]
[1761065938709,0.4466,4054.1,4052.2,2.46775527]
[1761065938907,0.4466,4054.1,4052.8,22.49979805]
[1761065938908,0.001,4054.1,4052.8,22.49979805]
[1761065939090,0.4466,4054.1,4052.3,0.4399]
[1761065939271,0.4466,4054.1,4052.9,3.84]
[1761065939476,2.4669429,4053.7,4052.9,3.84]
[1761065939677,2.46694368,4053.6,4052.9,3.84]
[1761065939878,2.46706047,4053.5,4053.0,3.836]
[1761065940226,2.46689804,4053.7,4053.0,3.836]
[1761065940227,0.001,4054.1,4053.1,3.836]
[1761065940902,2.46676396,4053.9,4053.1,3.836]
[1761065941159,2.46676396,4053.9,4053.0,0.3836]
[1761065941279,2.46676396,4053.9,4053.2,3.835]
[1761065941482,2.46671351,4054.0,4053.3,3.831]
[1761065941709,2.46677022,4053.9,4053.3,3.831]
[1761065942016,0.03083526,4053.8,4051.8,0.39939]
[1761065942220,2.4667604,4053.9,4051.6,0.002]
[1761065942382,22.49979805,4053.7,4051.6,0.002]
[1761065942584,2.46730816,4053.0,4051.6,0.002]
[1761065942797,0.4456,4053.6,4051.6,0.002]
[1761065942979,0.47643754,4053.5,4051.6,0.002]
[1761065943185,1.728,4053.4,4051.6,0.002]
[1761065943382,2.6880998,4051.7,4051.6,0.002]
[1761065943942,3.16455104,4051.7,4051.6,0.002]
[1761065944087,3.1336998,4051.7,4051.6,0.002]
[1761065944415,3.16455104,4051.7,4048.6,0.003]
[1761065944582,2.46937969,4049.6,4048.6,0.003]
[1761065944956,2.46982337,4048.9,4048.6,0.003]
[1761065945154,0.22,4049.7,4048.6,0.003]
[1761065945155,2.46937969,4049.6,4048.6,0.003]
[1761065945310,2.46992861,4048.7,4048.6,0.003]
[1761065945507,2.47035573,4048.0,4047.9,0.002]
[1761065945722,2.46998962,4048.6,4045.6,0.1714]
[1761065945723,2.4706609,4047.5,4045.6,0.08421722]
[1761065945922,2.47082313,4047.3,4045.6,0.08421722]
[1761065946123,0.28105619,4047.2,4045.6,0.08421722]
[1761065946326,0.22,4045.7,4045.6,0.08421722]
[1761065946610,2.69176014,4045.7,4045.6,0.08421722]
[1761065946809,2.69176014,4045.7,4043.2,0.4399]
[1761065946810,0.696497,4045.7,4043.5,0.408]
[1761065947026,0.4456,4045.6,4043.6,3.978622]
[1761065947213,0.22,4045.7,4043.8,2.2548]
[1761065947410,0.22,4046.3,4044.0,11.530849]
[1761065947639,0.4456,4047.6,4044.6,18.90277073]
[1761065947952,0.4456,4047.6,4044.8,4.781206]
[1761065948154,1.75888326,4047.5,4044.7,3.824]
[1761065948443,1.75888326,4047.5,4043.2,0.05]
[1761065948444,0.22,4044.8,4043.0,2.47339135]
[1761065948616,0.22,4044.8,4043.4,4.784151]
[1761065948819,0.22,4044.8,4043.2,3.827]
[1761065948820,0.4456,4044.7,4043.2,3.827]
[1761065949017,0.4456,4044.7,4042.0,2.47400311]
[1761065949018,0.0309054,4044.6,4042.1,0.1611]
[1761065949246,0.45245054,4044.6,4042.2,4.407216]
[1761065949432,0.22,4041.6,4040.0,0.11774]
[1761065949654,0.22,4043.2,4040.3,0.1734]
[1761065949655,0.1611,4043.1,4040.3,0.1734]
[1761065949957,0.1611,4043.1,4040.0,0.20338459]
[1761065949958,0.50688,4042.5,4040.0,0.11774]
[1761065950161,0.1611,4042.6,4040.0,0.11774]
[1761065950162,2.47456324,4041.2,4040.0,0.11774]
[1761065950368,0.66798,4041.0,4040.0,0.06774]
[1761065950573,0.50688,4040.6,4037.2,4.589172]
[1761065950709,1.728,4040.8,4037.8,4.102618]
[1761065950710,0.66798,4040.4,4037.8,4.102618]
[1761065950915,0.4456,4040.3,4038.0,6.869201]
[1761065951162,1.728,4041.8,4038.2,3.485302]
[1761065951466,0.1611,4041.0,4038.2,3.485302]
[1761065951612,0.1611,4041.6,4038.4,4.089498]
[1761065951908,0.50688,4041.2,4038.3,4.2939]
[1761065952108,0.03092911,4041.5,4038.3,3.851]
[1761065952109,0.1611,4040.7,4038.3,3.851]
[1761065952358,0.50688,4040.3,4037.6,0.2161]
[1761065952575,0.1611,4040.3,4037.6,0.2161]
[1761065952709,0.1611,4040.3,4037.8,5.201308]
[1761065952710,0.50688,4040.1,4037.8,5.201308]
[1761065952909,0.50688,4040.5,4037.9,0.4399]
[1761065953138,0.1611,4040.8,4038.4,3.807071]
[1761065953349,0.1611,4040.8,4039.1,2.47578944]
[1761065953508,0.1611,4040.8,4038.6,2.400562]
[1761065953708,0.4456,4040.8,4039.4,2.47560671]
[1761065954052,0.1611,4040.7,4038.6,2.47610558]
[1761065954212,0.1611,4040.5,4038.0,4.1541307]
[1761065954413,0.1581,4039.9,4039.4,0.1232]
[1761065954748,0.1581,4039.9,4037.1,0.125]
[1761065954749,0.50688,4039.9,4037.2,2.003462]
[1761065954946,0.1581,4039.8,4037.9,2.47651197]
[1761065955245,0.53782289,4039.7,4037.6,0.2161]
[1761065955546,0.1581,4039.2,4038.0,3.865]
[1761065955847,0.1581,4039.6,4037.5,2.47674222]
[1761065956047,0.1581,4039.5,4037.9,2.47651049]
[1761065956266,0.1581,4039.5,4037.6,3.645859]
[1761065956267,0.1581,4039.5,4038.1,2.47640516]
[1761065956471,0.4456,4039.6,4038.0,3.862]
[1761065956845,0.4456,4039.6,4038.2,2.47634478]
[1761065957062,0.22,4039.8,4037.6,0.656]
[1761065957357,0.50688,4039.6,4037.7,3.861]
[1761065957559,2.4761671,4038.5,4035.8,2.47779384]
[1761065957772,0.50688,4038.3,4036.1,0.1801]
[1761065957946,0.50688,4038.3,4035.2,1.67]
[1761065957947,0.22,4037.2,4035.2,2.222]
[1761065958269,4.20385916,4039.1,4035.1,0.4399]
[1761065958270,2.47677332,4037.6,4035.9,0.1801]
[1761065958444,2.98384423,4037.2,4035.2,2.636]
[1761065958646,0.4409,4037.5,4035.2,2.636]
[1761065958844,1.728,4038.1,4036.5,0.987]
[1761065958845,0.4409,4038.1,4036.5,0.987]
[1761065959146,2.47490659,4040.6,4036.5,0.987]
[1761065959147,4.08,4039.8,4037.2,2.629906]
[1761065959350,4.08,4039.8,4037.0,0.4703]
[1761065959351,0.6609,4039.3,4037.0,0.4703]
[1761065959550,0.6609,4039.3,4036.8,3.594]
[1761065959772,0.6609,4039.3,4037.7,2.47660316]
[1761065959933,0.22,4039.8,4037.8,0.2161]
[1761065960140,0.47184289,4039.7,4037.8,0.2161]
[1761065960339,0.47184289,4039.7,4037.3,0.002]
[1761065960340,0.47184289,4039.7,4037.9,3.859]
[1761065960659,0.4409,4039.7,4037.6,3.858]
[1761065960858,0.4409,4039.7,4037.8,2.549989]
[1761065961057,0.4409,4039.7,4037.9,3.855]
[1761065961261,0.50688,4039.5,4037.5,0.2161]
[1761065961445,0.22,4039.8,4037.3,0.4723]
[1761065961446,0.50688,4039.3,4037.3,0.002]
[1761065961656,1.728,4039.2,4037.3,0.002]
[1761065961849,2.47620162,4038.5,4037.3,0.002]
[1761065962036,0.21689,4039.1,4037.3,0.002]
[1761065962037,0.50688,4038.9,4037.3,0.002]
[1761065962267,0.50688,4038.7,4037.3,0.002]
[1761065962585,0.4409,4039.0,4037.4,6.799685]
[1761065962894,2.4760478,4038.7,4037.4,3.85]
[1761065963043,0.4409,4039.0,4037.3,3.852]
[1761065963394,0.4409,4038.9,4037.3,0.002]
[1761065963584,0.50688,4038.8,4037.3,0.002]
[1761065963786,0.34237454,4038.7,4037.3,0.002]
[1761065963990,0.2193,4039.1,4037.3,0.002]
[1761065964140,2.69511505,4039.1,4037.3,0.002]
[1761065964339,0.94578,4039.0,4037.3,0.002]
[1761065964545,0.50688,4038.8,4037.3,0.002]
[1761065964777,0.2336,4037.4,4037.3,0.002]
[1761065964950,3.24828204,4037.4,4037.3,0.002]
[1761065965153,3.68718204,4037.4,4037.3,0.002]
[1761065965466,3.68718204,4037.4,4037.1,0.125]
[1761065965467,0.6725,4037.4,4037.1,0.125]
[1761065965666,0.4389,4038.5,4037.1,0.125]
[1761065966041,0.03095285,4038.4,4037.1,0.125]
[1761065966268,2.47658115,4037.9,4034.2,8.651071]
[1761065966486,6.151844,4038.2,4034.4,2.217449]
[1761065966671,0.50688,4037.5,4034.3,3.9]
[1761065966878,0.1287,4036.7,4034.3,3.9]
[1761065967046,0.50688,4036.4,4034.4,2.91569018]
[1761065967387,0.50688,4036.4,4034.1,2.4788637]
[1761065967388,0.03096895,4036.3,4034.1,0.4703]
[1761065967600,2.4776393,4036.1,4033.7,0.80649817]
[1761065967745,1.728,4036.4,4033.7,0.80649817]
[1761065968091,0.50688,4035.3,4033.7,0.80649817]
[1761065968297,0.50688,4035.5,4033.7,0.80649817]
[1761065968501,0.50688,4034.5,4033.7,0.80649817]
[1761065968679,0.29848158,4035.4,4033.7,0.80649817]
[1761065968848,0.4367,4036.3,4033.8,3.0053]
[1761065969047,0.2335,4036.9,4034.0,3.751735]
[1761065969282,0.4368,4036.6,4034.1,4.410565]
[1761065969456,0.4368,4036.6,4034.4,2.47868332]
[1761065969666,2.91413857,4036.6,4034.3,2.301634]
[1761065969942,0.4368,4036.6,4034.4,3.895]
[1761065970143,0.4368,4036.6,4034.5,3.198168]
[1761065970396,0.4368,4036.6,4034.7,2.036416]
[1761065970687,0.50688,4035.6,4033.9,0.0899]
[1761065970869,0.50688,4035.6,4033.7,0.80649817]
[1761065970870,0.50688,4036.4,4033.7,0.80649817]
[1761065971042,0.50688,4035.3,4033.7,0.80649817]
[1761065971378,1.728,4036.0,4033.7,0.80649817]
[1761065971581,2.47757193,4036.3,4033.7,0.80649817]
[1761065971582,0.73148,4033.8,4033.7,0.80649817]
[1761065971768,3.21053201,4033.8,4033.7,0.80649817]
[1761065971969,1.16818,4033.8,4033.7,0.80649817]
[1761065972186,0.2336,4034.5,4033.7,0.80649817]
[1761065972367,0.4278,4034.7,4033.7,0.80649817]
[1761065972368,2.47814827,4035.3,4033.7,0.80649817]
[1761065972570,0.56196216,4035.3,4033.7,0.80649817]
[1761065972769,0.4367,4035.2,4033.7,0.80649817]
[1761065973186,0.50688,4035.0,4033.7,0.80649817]
[1761065973383,2.47875916,4034.3,4033.7,0.80649817]
[1761065973563,0.50688,4034.0,4033.7,0.80649817]
[1761065973882,0.50688,4034.6,4033.7,0.80649817]
[1761065974077,2.9856191,4034.4,4033.7,0.80649817]
[1761065974246,0.37321621,4034.3,4033.7,0.80649817]
[1761065974447,0.50688,4034.2,4033.7,0.80649817]
[1761065974649,2.47905201,4033.8,4033.7,0.80649817]
[1761065974850,2.98593201,4033.8,4033.7,0.80649817]
[1761065975063,3.45362016,4033.8,4033.7,0.80649817]
[1761065975380,5.15063201,4033.8,4033.7,0.80209817]
[1761065975578,5.91359114,4033.8,4033.7,0.80209817]
[1761065975890,5.15063201,4033.8,4033.7,0.80209817]
[1761065976649,0.4324,4034.3,4033.7,0.80209817]
[1761065976983,0.4324,4035.3,4033.7,0.80209817]
[1761065977457,2.98593201,4033.8,4033.7,0.80209817]
[1761065977984,0.4324,4034.5,4033.7,0.80209817]
[1761065978818,2.47905201,4033.8,4033.7,0.80209817]
[1761065979100,3.48173398,4033.8,4033.7,0.80209817]
[1761065979314,3.91203398,4033.8,4033.7,0.80209817]
[1761065979523,1.43298197,4033.8,4033.7,0.80209817]
[1761065979815,2.90935201,4033.8,4033.7,0.80209817]
[1761065980018,3.41623201,4033.8,4033.7,0.80209817]
[1761065980227,5.14423201,4033.8,4033.7,0.80209817]
[1761065980516,0.50688,4033.0,4031.8,0.1122304]
[1761065980728,0.03099506,4032.9,4031.8,0.1122304]
[1761065980866,0.03099506,4032.9,4028.9,0.08539431]
[1761065980867,0.50688,4031.8,4028.5,17.831199]
[1761065981203,2.48043278,4031.6,4028.7,2.604294]
[1761065981365,0.50688,4031.5,4029.0,2.768398]
[1761065981565,0.50688,4031.5,4029.7,2.48155129]
[1761065981791,0.50688,4031.8,4029.3,7.91128]
[1761065982104,0.81998,4031.8,4028.8,0.94548933]
[1761065982411,0.50688,4031.3,4027.8,0.6425]
[1761065982567,0.50688,4030.9,4027.8,0.6425]
[1761065982766,4.05923,4031.3,4028.0,1.541]
[1761065982967,0.03100813,4031.2,4028.0,0.1]
[1761065983168,0.50688,4030.0,4028.0,2.58262041]
[1761065983417,2.815,4031.7,4028.2,2.888192]
[1761065983418,1.728,4030.7,4028.2,2.888192]
[1761065983724,2.815,4031.7,4028.5,1.728]
[1761065983725,1.728,4031.6,4028.5,1.728]
[1761065983867,2.48073714,4031.1,4028.6,4.3753]
[1761065984071,0.3131,4031.0,4028.0,0.1]
[1761065984397,0.50688,4030.1,4028.0,0.05]
[1761065984603,0.50688,4029.5,4028.0,0.05]
[1761065984768,3.21244001,4028.1,4028.0,1e-08]
[1761065984971,5.96429086,4028.1,4028.0,1e-08]
[1761065985309,5.96429086,4028.1,4023.9,2.70120727]
[1761065985310,0.50688,4027.8,4024.9,0.2161]
[1761065985470,2.23488,4026.7,4024.0,0.4703]
[1761065985671,0.50688,4026.7,4024.6,1.167]
[1761065985904,0.223,4028.1,4025.2,2.630559]
[1761065986213,0.05,4029.6,4025.6,30.0]
[1761065986366,0.05,4029.8,4025.9,1.728]
[1761065986569,0.05,4029.6,4026.3,1.728]
[1761065986788,0.05,4029.4,4026.6,24.63549]
[1761065986999,0.05,4029.4,4026.8,3.249055]
[1761065987175,0.05,4029.2,4026.9,1.675]
[1761065987377,0.03102429,4029.1,4026.9,1.675]
[1761065987606,0.05,4029.1,4026.8,0.4703]
[1761065987821,0.05,4029.1,4026.9,1.598]
[1761065988115,0.50688,4029.1,4027.1,3.4018]
[1761065988270,0.50688,4029.1,4027.0,0.20683]
[1761065988474,0.03102429,4029.1,4027.2,2.889411]
[1761065988670,0.3601,4030.0,4028.0,4.313326]
[1761065988869,0.0310189,4029.8,4028.1,3.929]
[1761065989108,0.0310189,4029.8,4027.2,0.4703]
[1761065989404,0.50688,4029.6,4027.9,3.928]
[1761065989712,0.50688,4029.4,4027.4,2.499981]
[1761065990017,0.03102275,4029.3,4027.5,3.924]
[1761065990228,0.3601,4029.4,4027.5,3.924]
[1761065990429,0.2336,4029.9,4027.6,5.8889]
[1761065990723,0.19494,4031.7,4027.5,3.924]
[1761065990724,0.4389,4030.9,4028.0,1.728]
[1761065990923,0.4389,4030.9,4027.7,0.4703]
[1761065990924,0.03101121,4030.8,4028.2,2.366019]
[1761065991096,0.03101121,4030.8,4028.5,3.304181]
[1761065991299,0.03101121,4030.8,4026.2,0.05]
[1761065991300,5.228884,4030.6,4026.2,0.05]
[1761065991627,5.228884,4030.6,4027.4,0.1778]
[1761065991628,0.03101352,4030.5,4027.4,0.1778]
[1761065991809,2.1634,4030.5,4027.6,2.48283655]
[1761065992018,0.50688,4029.7,4027.6,2.4828682]
[1761065992329,0.4354,4030.4,4027.9,2.48262651]
[1761065992489,0.4354,4030.4,4028.0,3.924]
[1761065992490,0.50688,4030.3,4028.0,3.924]
[1761065992895,0.525,4031.2,4028.2,4.276839]
[1761065993086,0.525,4031.2,4028.5,6.067502]
[1761065993286,0.0896,4031.2,4028.4,16.777227]
[1761065993502,2.48028952,4031.8,4029.2,2.48183261]
[1761065993721,2.48033463,4031.8,4029.8,2.48150589]
[1761065993922,2.48034327,4031.7,4029.9,4.3936]
[1761065994111,0.29945433,4031.6,4030.0,3.917]
[1761065994423,0.304,4031.8,4030.1,3.917]
[1761065994829,0.4488,4032.6,4030.2,0.4746]
[1761065995136,0.4451,4033.2,4030.6,2.48100485]
[1761065995429,0.124,4031.7,4031.0,0.124]
[1761065995816,0.124,4032.0,4031.3,0.124]
[1761065996126,0.124,4032.0,4031.4,3.907]
[1761065996313,2.92454001,4033.2,4031.4,5.08022949]
[1761065996511,0.124,4032.2,4031.5,0.124]
[1761065996829,0.0752,4033.8,4033.1,0.2247]
[1761065997010,0.0752,4033.8,4033.2,6.53632]
[1761065997229,0.0752,4033.8,4033.3,4.3806]
[1761065997539,0.0752,4033.8,4033.4,3.904]
[1761065997753,0.0752,4033.8,4033.5,0.4746]
[1761065998559,0.0752,4033.8,4033.6,3.899]
[1761065998768,0.0752,4033.8,4033.1,0.2247]
[1761065998769,0.0752,4033.8,4033.7,3.898]
[1761065999249,0.0752,4033.8,4033.7,10.43338146]
[1761065999545,0.6339,4036.7,4033.7,4.056268]
[1761065999758,0.4488,4036.6,4033.9,4.362016]
[1761066000248,0.62707848,4037.2,4034.1,7.790634]
[1761066000249,0.4488,4037.2,4034.1,7.790634]
[1761066000456,0.0788,4037.4,4034.1,7.790634]
[1761066000758,0.0788,4037.4,4034.0,0.6908]
[1761066000759,0.58699991,4037.3,4034.4,2.47868332]
[1761066000959,0.58699991,4037.3,4034.5,3.894]
[1761066001247,0.58699991,4037.3,4033.6,3.894]
[1761066001248,2.47727103,4036.7,4033.6,3.894]
[1761066001447,6.359829,4036.5,4033.1,0.2247]
[1761066001651,1.0495673,4036.6,4032.6,0.293]
[1761066001652,2.47914013,4033.7,4032.6,0.293]
[1761066001824,0.2223,4034.0,4032.6,0.293]
[1761066002024,0.4462,4035.6,4032.8,3.0678]
[1761066002249,0.62707848,4036.1,4032.8,9.467063]
[1761066002250,2.47784344,4035.8,4032.8,9.467063]
[1761066002413,1.728,4035.7,4033.0,10.929228]
[1761066002627,0.4462,4035.7,4033.2,2.48711]
[1761066002862,0.4462,4035.6,4032.4,0.2247]
[1761066003014,0.4462,4035.6,4032.0,0.2162]
[1761066003015,0.50688,4034.4,4032.0,0.2162]
[1761066003213,0.50688,4033.8,4031.9,2.57]
[1761066003425,1.728,4033.6,4031.4,0.2162]
[1761066003631,2.47977898,4032.7,4031.5,1.9546]
[1761066003826,2.47975399,4032.7,4031.6,3.897]
[1761066004129,0.50688,4032.5,4031.3,3.897]
[1761066004318,0.0309989,4032.4,4031.4,3.897]
[1761066004514,0.4462,4033.1,4031.4,3.897]
[1761066004769,0.50688,4033.2,4030.9,0.2162]
[1761066004770,0.714308,4033.0,4030.9,0.2162]
[1761066004916,0.50688,4032.8,4030.3,0.4746]
[1761066005117,0.50688,4032.8,4028.4,0.2162]
[1761066005118,1.728,4032.3,4030.4,0.898]
[1761066005448,2.48054249,4031.4,4030.4,0.898]
[1761066005649,0.50688,4032.1,4029.9,3.1582]
[1761066005855,2.47977941,4032.7,4028.4,0.2162]
[1761066005856,2.23488,4031.7,4028.4,0.2162]
[1761066006015,0.47151618,4031.6,4028.5,3.888]
[1761066006218,0.50688,4031.7,4028.5,3.888]
[1761066006416,0.50688,4031.7,4028.4,0.6908]
[1761066006417,2.48102474,4030.6,4028.7,4.009772]